Cogmind - Beta 10.2 @@@ ROGUE MODE // 2021.07.23 @ 21:41:22 Player: szymekc Result: Destroyed by G-73 Enforcer with Phase Gun Performance ------------- Evolutions (8) 4000 Regions Visited (22) 4400 Robots Destroyed (374) 1870 Value Destroyed (16884) 16884 Prototype IDs (42) 840 Alien Tech Used (0) 0 Bonus (4493) 4493 TOTAL SCORE: 32487 Bonus ------- High Alert Combat Kills 4188 Follower Combat Kills 1297 Network Hubs Disabled 200 Met Data Miner 300 Friendly Fire -1492 Cogmind --------- Core Integrity 0/1450 Matter 300/300 Energy 99/100 System Corruption 16% Temperature Cool (0) Movement Core (50) Location -2/Research Parts ------- > --- POWER (2) -------- (None) > --- PROPULSION (7) --- (None) > --- UTILITY (10) ----- Improved Signal Interpreter > --- WEAPON (4) ------- (None) > --- INVENTORY (4) ---- Light Quantum Reactor Peak State ------------ > --- POWER ------------ Light Particle Reactor Light Quantum Reactor > --- PROPULSION ------- Advanced Heavy Treads Myomer Leg Centrium Wheel Centrium Wheel Improved Antigrav System Improved Gyrokinetic Inverter > --- UTILITY ---------- Experimental Power Amplifier Experimental Cooling System Medium Storage Unit Improved Signal Interpreter Advanced Target Analyzer Advanced ECM Suite Centrium Heavy Armor Plating Experimental System Shield > --- WEAPON ----------- Gamma Rifle Gamma Rifle Enhanced Nova Cannon Enhanced Force Lance > --- INVENTORY -------- Light Antimatter Reactor Light Particle Reactor Improved Antigrav System Impulse Thruster Improved Arc Projector Gamma Rifle Advanced Micro-nuke Launcher Advanced Micro-nuke Launcher [Rating: 167] Favorites ----------- Power Quantum Reactor Engine Cooled Ion Engine Power Core Cooled Fission Core Reactor Quantum Reactor Propulsion Armored Treads Treads Armored Treads Leg Myomer Leg Wheel Centrium Wheel Hover Unit Improved Gyrokinetic Inverter Flight Unit Electron Diverter Utility High-capacity Storage Unit Device Advanced Heat Sink Storage High-capacity Storage Unit Processor Enhanced Optical Array Hackware Experimental System Shield Protection Centrium Medium Armor Plating Weapon Enhanced Autogun Energy Gun Gamma Rifle Energy Cannon EMDS Ballistic Gun Enhanced Autogun Ballistic Cannon Tri-rail Accelerator Launcher Micro-nuke Launcher Special Weapon Stasis Projector Slashing Weapon Axe Piercing Weapon Enhanced Force Lance Build | -11 -10 -9 -9 -8 -8 -8 -6 -6 -6 -6 -5 -5 -5 -5 -5 -5 -4 -4 -4 -3 -3 -2 ------- Run | Scr Mat Mat Min Mat Sto Rec Fac Low Low Dat Pro Fac Ext Cet Arc Hub Fac Was Fac Res Tes Res Slots Evolved 16 | . . 2 . 2 . . 4 . . . . 2 . . . . 2 . . 2 . 2 Power 1 | . . . . . . . . . . . . . . . . . 1 . . . . . Propulsion 5 | . . . . 1 . . 1 . . . . 1 . . . . . . . . . 2 Utility 8 | . . 1 . 1 . . 2 . . . . 1 . . . . 1 . . 2 . . Weapon 2 | . . 1 . . . . 1 . . . . . . . . . . . . . . . Parts Attached 469 | . 8 27 6 31 29 2 6 7 3 . . 28 33 6 5 65 14 6 67 30 44 52 Power 40 | . . 4 . 2 1 . . 1 . . . 2 1 1 . 2 1 . 6 3 8 8 Engine 11 | . . 4 . 1 1 . . 1 . . . . . . . . . . . 2 2 . Core 9 | . . . . 1 . . . . . . . 1 1 . . . . . 1 1 . 4 Reactor 20 | . . . . . . . . . . . . 1 . 1 . 2 1 . 5 . 6 4 Propulsion 117 | . 3 7 2 5 8 . 1 . . . . 10 13 1 2 16 5 . 8 8 16 12 Treads 61 | . . 4 . 1 7 . 1 . . . . 8 8 1 2 14 1 . 4 2 5 3 Leg 32 | . 3 3 2 4 1 . . . . . . 1 5 . . 1 4 . 4 1 2 1 Wheel 3 | . . . . . . . . . . . . . . . . 1 . . . . . 2 Hover 19 | . . . . . . . . . . . . . . . . . . . . 5 8 6 Flight 2 | . . . . . . . . . . . . 1 . . . . . . . . 1 . Utility 138 | . 1 6 1 8 6 2 4 3 . . . 12 8 2 . 21 5 2 29 12 14 2 Device 72 | . . 2 1 3 1 2 2 1 . . . 6 3 . . 10 3 2 20 7 8 1 Storage 10 | . . 1 . 1 1 . . . . . . 1 . . . . . . 1 2 2 1 Processor 18 | . 1 1 . 2 2 . . 1 . . . 3 . . . 2 . . 2 3 1 . Hackware 1 | . . . . . . . . . . . . . . . . . . . . . 1 . Protection 37 | . . 2 . 2 2 . 2 1 . . . 2 5 2 . 9 2 . 6 . 2 . Artifact . | . . . . . . . . . . . . . . . . . . . . . . . Weapon 174 | . 4 10 3 16 14 . 1 3 3 . . 4 11 2 3 26 3 4 24 7 6 30 Energy Gun 39 | . 4 2 2 . . . . . . . . . . . 3 4 . . 4 2 2 16 Energy Cannon 17 | . . 5 . . . . . . . . . . . . . 1 . 1 4 1 2 3 Ballistic Gun 52 | . . 3 1 11 5 . 1 1 2 . . 1 4 2 . 14 2 1 4 . . . Ballistic Cannon 21 | . . . . 3 4 . . 1 . . . 3 2 . . 1 1 1 5 . . . Launcher 25 | . . . . . . . . 1 1 . . . 5 . . 1 . 1 5 4 . 7 Special Weapon 1 | . . . . . . . . . . . . . . . . . . . . . . 1 Impact Weapon . | . . . . . . . . . . . . . . . . . . . . . . . Slashing Weapon 14 | . . . . 2 5 . . . . . . . . . . 5 . . 2 . . . Piercing Weapon 5 | . . . . . . . . . . . . . . . . . . . . . 2 3 Special Melee Weapon . | . . . . . . . . . . . . . . . . . . . . . . . Unidentified Prototypes 29 | . . 2 1 . 2 . . . . . . 3 . 3 . 6 . . . 1 10 1 Parts Lost 91 | . 1 . . . 2 . . . . . . . 7 . 1 6 1 1 25 15 . 32 Power 13 | . . . . . . . . . . . . . 1 . . . . . 5 3 . 4 Propulsion 23 | . . . . . . . . . . . . . 1 . . 1 1 . 6 3 . 11 Utility 25 | . . . . . 2 . . . . . . . 2 . . 4 . . 4 6 . 7 Weapon 30 | . 1 . . . . . . . . . . . 3 . 1 1 . 1 10 3 . 10 Highest Loss Streak 22 | . 1 . . . 1 . . . . . . . 4 . 1 3 1 1 11 10 . 22 Average Slot Usage (%) 88 | . 99 97 100 99 99 100 100 94 93 93 93 87 92 94 93 89 90 92 85 40 64 60 Engine 3 | . 14 10 11 1 9 9 6 6 6 6 6 . . . . . . . . . 2 . Core 1 | . . . . 7 . . . . . . . 1 5 . . . . . 1 . . 1 Reactor 2 | . . . . . . . . . . . . 2 . 4 5 5 10 10 7 . 6 5 Treads 14 | . . 11 . 3 21 27 26 26 26 26 26 27 21 22 22 19 8 . 5 . 4 1 Leg 7 | . 28 10 22 23 5 . . . . . . . 6 . . . 13 26 13 1 4 . Hover 1 | . . . . . . . . . . . . . . . . . . . . 8 7 9 Device 7 | . . 7 11 13 7 8 13 7 . . . 4 4 5 5 5 10 10 11 11 11 8 Storage 6 | . 14 11 11 9 9 9 6 6 6 6 6 5 5 5 5 5 5 5 5 2 3 3 Processor 16 | . 13 8 11 9 11 18 13 13 20 20 20 21 23 23 23 22 21 21 21 7 13 7 Protection 3 | . . 4 . 4 7 . 6 6 6 6 6 4 4 5 5 4 5 5 1 . . 2 Energy Gun 1 | . 23 4 9 1 . . . . . . . . . . 7 . . . 2 2 . 5 Energy Cannon 1 | . . 17 12 . . . . . . . . . . . . . 5 . 2 . . 1 Ballistic Gun 11 | . 3 11 11 22 15 27 26 25 17 20 20 2 7 23 14 19 5 4 4 . . . Ballistic Cannon 3 | . . . . . 8 . . . 6 6 6 10 8 . . . 5 3 3 . . . Naked Turns 13 | . . . . . . . . . . . . . . . . . . . 6 7 . . Heaviest Build 121 | 11 14 31 26 40 54 52 57 82 83 80 80 94 85 82 83 96 116 121 118 47 92 101 Greatest Support 178 | 20 20 40 34 49 60 60 80 80 80 80 80 115 117 167 167 178 135 130 150 72 130 85 Greatest Overweight (x) 5 | . . 1 . 1 . . . 1 1 . . 1 2 . . . 2 . 2 1 1 5 Average Overweight (x) . | . . . . . . . . . . . . . . . . . . . . . . . Largest Inventory Capacity 12 | 6 6 6 6 10 12 12 12 12 12 12 12 12 12 12 12 12 12 12 12 4 8 12 Average Capacity 10 | 6 6 6 6 8 10 12 12 12 12 12 12 12 12 12 12 12 12 12 11 4 7 7 Most Carried 12 | 6 6 6 6 10 12 12 12 12 12 12 12 12 12 12 12 12 12 12 12 4 8 8 Average Carried 9 | 6 5 5 5 8 10 12 9 11 12 12 11 11 10 11 11 11 11 10 11 3 6 5 Final Capacity 12 | 6 6 6 6 10 12 12 12 12 12 12 12 12 12 12 12 12 12 12 4 4 8 4 Final Carried 12 | 6 6 6 6 10 12 12 12 12 12 12 12 12 12 12 12 12 12 10 3 4 8 1 Class Distribution -------------------- 27% | Scavenger-Gunner 21% | Gunner 13% | Scavenger-Mutant 12% | Mutant 11% | Skirmisher 6% | Tank 3% | Scavenger-Skirmisher Dominant Class ---------------- Mutant | -10/Materials Gunner | -9/Materials Gunner | -9/Mines Scavenger-Skirmisher | -8/Materials Skirmisher | -8/Storage Skirmisher | -8/Recycling Skirmisher | -6/Factory Tank | -6/Lower Caves Gunner | -6/Lower Caves Gunner | -6/Data Miner Gunner | -5/Proximity Caves Gunner | -5/Factory Scavenger-Gunner | -5/Extension Scavenger-Gunner | -5/Cetus Scavenger-Gunner | -5/Archives Scavenger-Gunner | -5/Hub_04(d) Scavenger-Gunner | -4/Factory Scavenger-Mutant | -4/Waste Scavenger-Gunner | -4/Factory Mutant | -3/Research Scavenger-Mutant | -3/Testing Scavenger-Gunner | -2/Research Resources | -11 -10 -9 -9 -8 -8 -8 -6 -6 -6 -6 -5 -5 -5 -5 -5 -5 -4 -4 -4 -3 -3 -2 ----------- Run | Scr Mat Mat Min Mat Sto Rec Fac Low Low Dat Pro Fac Ext Cet Arc Hub Fac Was Fac Res Tes Res Matter Collected 13127 | 200 85 550 91 848 1074 175 69 194 193 . 48 1049 1494 263 213 1540 1304 232 1945 158 761 641 Remotely . | . . . . . . . . . . . . . . . . . . . . . . . Salvage Created 18897 | . 464 1117 271 1125 1333 29 69 196 208 . 50 1493 1470 290 357 2406 1483 591 2518 318 1258 1851 Parts 840 | . 25 73 12 42 75 6 4 14 4 . 2 62 64 18 11 125 41 1 81 35 69 76 Haulers Intercepted 16 | . 1 3 . 3 1 . . . . . . 2 . . . 3 1 . 1 . 1 . Recyclers Shooed 19 | . . 1 . . 3 . . . . . . 3 1 . . . 2 . 4 1 2 2 Parts Field Recycled . | . . . . . . . . . . . . . . . . . . . . . . . Retrieved Matter . | . . . . . . . . . . . . . . . . . . . . . . . Parts Self-Destructed 17 | . . . . . . . . 11 2 . 4 . . . . . . . . . . . Prevented 5 | . . . . . . . . 3 2 . . . . . . . . . . . . . Kills | -11 -10 -9 -9 -8 -8 -8 -6 -6 -6 -6 -5 -5 -5 -5 -5 -5 -4 -4 -4 -3 -3 -2 ------- Run | Scr Mat Mat Min Mat Sto Rec Fac Low Low Dat Pro Fac Ext Cet Arc Hub Fac Was Fac Res Tes Res Combat Hostiles Destroyed 280 | . 9 21 5 19 24 3 1 4 3 . 1 24 24 9 4 27 20 3 31 7 11 30 Melee 23 | . . . . . 2 . . . . . . . . . . 1 1 . 2 . 11 6 Guns 118 | . 9 10 . 19 12 3 1 3 1 . . . 5 9 4 26 2 . 9 . . 5 Cannons 97 | . . 11 4 . 10 . . 1 1 . 1 24 18 . . . 12 . 14 . . 1 AOE 37 | . . . 1 . . . . . 1 . . . 1 . . . . 3 6 7 . 18 Classes Destroyed 19 | . 3 6 1 1 1 1 . 1 . . . 1 2 . . . 1 1 . . . . Worker 17 | . 1 . . 1 1 . . . . . . . . . . 4 . . 2 4 3 1 Builder 11 | . . 2 . . . . . . . . . 2 1 . . 1 . . 2 1 . 2 Tunneler 5 | . . . . . . . . . . . . . 1 . . 2 . . . 2 . . Hauler 16 | . 1 3 . 3 1 . . . . . . 2 . . . 3 1 . 1 . 1 . Recycler 24 | . . 2 . 1 4 . . . . . . 2 2 . . 1 1 . 4 . 3 4 Mechanic 3 | . . . . . . . . . . . . . . . . . 1 . 1 . 1 . Operator 4 | . . 1 . . 1 . . . . . . . . . . . 1 . 1 . . . Drone 3 | . . . . . . 3 . . . . . . . . . . . . . . . . Watcher 13 | . . . . 1 . . . . . . . 1 2 . . 3 1 . 3 1 . 1 Swarmer 43 | . . 6 2 2 5 . . 2 . . . . 2 7 . 2 . . . 5 3 7 Grunt 97 | . 9 8 1 10 9 . . . . . . 10 7 . . 9 6 . 12 . 4 12 Brawler 7 | . . . 1 1 . . . . 2 . . . . . . 1 . . 1 . . 1 Duelist 4 | . . 1 . . . . . . . . . . . . . 1 . . 2 . . . Protector 3 | . . . . . . . . . . . . . 1 . . 1 . . . . . 1 Sentry 56 | . . 6 1 6 9 . 1 1 1 . . 4 7 . 4 7 5 . 4 . . . Hunter 22 | . . . . . 1 . . . . . 1 3 4 . . 1 4 . 6 . . 2 Programmer 33 | . . . . . . . . . . . . 7 . . . 2 5 . 6 2 4 7 Behemoth 2 | . . . . . . . . 1 . . . . 1 . . . . . . . . . Compactor 3 | . . . . . . . . . . . . . . . . . . 3 . . . . Cetus Guard 2 | . . . . . . . . . . . . . . 2 . . . . . . . . Lightning 3 | . . . . . . . . . . . . . . . . 3 . . . . . . Thug 2 | . . . . . . . . . . . . . 2 . . . . . . . . . Butcher 1 | . . . . . . . . . . . . . 1 . . . . . . . . . Best Kill Streak 11 | . 2 6 6 5 7 2 1 3 3 . 1 7 6 6 2 7 7 2 9 3 5 11 Combat Bots Only 11 | . 2 5 4 5 4 2 1 3 3 . 1 6 5 6 2 4 5 2 7 3 3 11 Max Kills in Single Turn 4 | . 1 2 1 2 1 1 1 2 1 . 1 2 2 3 1 2 1 1 2 3 1 4 Gunslinging 1 | . . . . 1 . . . 1 . . . . . 1 . . . . . . . . Exploded 4 | . . . 1 . . . . . 1 . . . 1 . . . . 1 2 2 . 4 Melee 1 | . . . . . 1 . . . . . . . . . . 1 1 . 1 . 1 1 Uniques/NPCs Destroyed . | . . . . . . . . . . . . . . . . . . . . . . . Combat | -11 -10 -9 -9 -8 -8 -8 -6 -6 -6 -6 -5 -5 -5 -5 -5 -5 -4 -4 -4 -3 -3 -2 -------- Run | Scr Mat Mat Min Mat Sto Rec Fac Low Low Dat Pro Fac Ext Cet Arc Hub Fac Was Fac Res Tes Res Damage Taken 27713 | . 241 782 143 658 1323 . 96 247 8 . 41 1147 2760 259 403 3233 938 413 4968 2745 1179 6129 Core 4380 | . 35 251 35 50 95 . . 15 . . . 19 173 14 . 155 73 131 730 917 234 1453 Absorbed by Shields 246 | . . . . . . . . . . . . . 246 . . . . . . . . . Core Remaining (%) 59 | 100 86 . 28 . . 73 . . . . 98 . . . . 63 . . 18 . 11 . Volleys Fired 719 | . 23 47 17 46 64 11 2 9 11 . 4 57 69 13 11 71 64 28 107 25 . 40 Largest 4 | . 2 3 3 3 3 3 4 4 4 . 4 3 4 4 4 4 3 1 4 2 . 3 Hottest 285 | . 115 225 166 104 124 75 100 137 132 . 132 120 160 134 176 237 160 46 285 98 . 260 Shots Fired 1831 | . 43 137 51 135 180 33 8 27 26 . 16 116 178 52 43 266 154 27 247 27 . 65 Gun 1130 | . 43 60 17 131 119 33 8 20 14 . 12 21 56 52 43 255 55 . 125 19 . 47 Cannon 622 | . . 77 34 4 61 . . 1 6 . 4 95 114 . . 11 99 . 111 . . 5 Launcher 79 | . . . . . . . . 6 6 . . . 8 . . . . 27 11 8 . 13 Special . | . . . . . . . . . . . . . . . . . . . . . . . Kinetic 1404 | . 10 51 17 135 180 33 8 21 20 . 16 116 170 52 42 256 113 . 164 . . . Thermal 243 | . 25 86 34 . . . . . . . . . . . 1 9 . . 52 19 . 17 Explosive 61 | . . . . . . . . . . . . . 2 . . . . 27 11 8 . 13 Electromagnetic 123 | . 8 . . . . . . 6 6 . . . 6 . . 1 41 . 20 . . 35 Robot Hit Streak 25 | . 14 8 18 12 16 3 6 16 24 . 10 19 21 6 15 25 24 18 10 10 . 7 Robot Miss Streak 12 | . 3 3 3 5 5 9 . 1 2 . 1 5 12 2 2 3 3 . 6 3 . 2 Penetration Max 1 | . . . . 1 1 . . . . . . . 1 1 . 1 1 . 1 . . . Secondary Targets 12 | . . . . 3 2 . . 2 . . . . . 1 1 3 . . . . . . Max Gunslinging Chain 1 | . . . . 1 1 . . 1 . . . . . 1 1 1 . . . . . . Shots Hit Robots 1286 | . 33 70 30 91 114 11 5 22 19 . 14 94 131 22 35 192 118 9 162 15 32 67 Core Hits 758 | . 20 33 9 39 45 3 3 8 9 . 7 82 85 15 19 89 43 9 101 33 25 81 Critical Hits 152 | . . . 1 . 6 . . 1 . . . 3 17 4 2 39 35 . 28 1 7 8 Critical Kills 51 | . . . . . 3 . . 1 . . . 1 7 . 1 16 7 . 4 . 6 5 Critical Parts Destroyed 87 | . . . 1 . 3 . . . . . . 1 4 2 . 22 25 . 24 1 1 3 Melee Attacks 157 | . . . . 20 18 . . . . . . . . . . 11 . . 21 . 44 43 Impact . | . . . . . . . . . . . . . . . . . . . . . . . Slashing 70 | . . . . 20 18 . . . . . . . . . . 11 . . 21 . . . Piercing 87 | . . . . . . . . . . . . . . . . . . . . . 44 43 Sneak Attacks 21 | . . . . 3 1 . . . . . . . . . . 2 . . 4 . 9 2 Combat Hostiles 1 | . . . . . . . . . . . . . . . . . . . 1 . . . Follow-up Attacks . | . . . . . . . . . . . . . . . . . . . . . . . Damage Inflicted 51730 | . 472 1392 610 2386 2410 130 81 416 484 . 257 3864 5525 698 891 5063 4399 3662 7843 2033 2199 6915 Guns 16631 | . 472 471 89 1846 1319 130 81 333 196 . 168 372 889 689 891 4510 1000 . 2036 393 . 746 Cannons 16492 | . . 921 414 56 761 . . 34 114 . 89 3481 4103 . . 173 3352 . 2866 . . 128 Explosions 12875 | . . . 107 . . . . 49 174 . . . 533 . . . . 3662 1849 1573 . 4928 Melee 5380 | . . . . 484 315 . . . . . . . . . . 360 . . 941 . 2192 1088 Ramming 352 | . . . . . 15 . . . . . . 11 . 9 . 20 47 . 151 67 7 25 Kinetic 26202 | . 58 384 89 1902 2080 130 81 367 310 . 257 3853 4992 689 870 4465 2233 . 3442 . . . Thermal 3567 | . 309 1008 521 . . . . . . . . . 55 . 21 168 . . 676 393 . 416 Explosive 12256 | . . . . . . . . . . . . . 244 . . . . 3662 1849 1573 . 4928 Electromagnetic 3973 | . 105 . . . . . . 49 174 . . . 234 . . 50 2119 . 784 . . 458 Impact . | . . . . . . . . . . . . . . . . . . . . . . . Slashing 2100 | . . . . 484 315 . . . . . . . . . . 360 . . 941 . . . Piercing 3280 | . . . . . . . . . . . . . . . . . . . . . 2192 1088 Highest Corruption 25 | . . . . . . . . . . . . 2 2 2 2 21 2 5 6 19 25 16 Average Corruption 5 | . . . . . . . . . . . . 1 2 2 2 5 1 2 4 14 20 6 Corruption Purged 8 | . . . . . . . . . . . . . . . . 2 2 . 4 . . . Effects 250 | . . . . . . . . . . . . 4 13 6 6 53 7 9 51 12 62 27 Message Errors 51 | . . . . . . . . . . . . 2 1 1 2 9 1 3 12 3 14 3 Matter Fused 24 | . . . . . . . . . . . . . . . . 4 . 2 5 2 8 3 Heat Flow Errors 30 | . . . . . . . . . . . . 2 2 . . 12 1 . 6 1 5 1 Energy Discharges 27 | . . . . . . . . . . . . . 5 . 1 3 1 . 5 3 4 5 Parts Rejected 4 | . . . . . . . . . . . . . . . . . . . 2 . 1 1 Data Loss (minor) 20 | . . . . . . . . . . . . . . 2 1 5 2 1 5 . 1 3 Data Loss (major) 2 | . . . . . . . . . . . . . . . . . . . . . 2 . Misfires 2 | . . . . . . . . . . . . . . . . 1 . . 1 . . . Alerts 1 | . . . . . . . . . . . . . . . . . . . . . 1 . Misdirections 22 | . . . . . . . . . . . . . . . . 7 . . . 2 12 1 Targeting Errors 58 | . . . . . . . . . . . . . 3 3 1 11 2 2 11 1 14 10 Weapon Failures 9 | . . . . . . . . . . . . . 2 . 1 1 . 1 4 . . . Overload Shots . | . . . . . . . . . . . . . . . . . . . . . . . Overflow Damage 1262 | . . . 57 40 112 . . . . . . 17 61 . . 21 98 90 365 30 88 283 Projectiles 356 | . . . 57 13 31 . . . . . . 17 61 . . 21 98 . 58 . . . Explosions 481 | . . . . . . . . . . . . . . . . . . 90 178 30 . 183 Melee 425 | . . . . 27 81 . . . . . . . . . . . . . 129 . 88 100 Knockbacks 101 | . . . . 1 9 . . . . . . 30 27 . . 3 12 . 19 . . . Impact 1 | . . . . . . . . . . . . . . . . . 1 . . . . . Kinetic 91 | . . . . 1 9 . . . . . . 26 25 . . 3 10 . 17 . . . Secondary 9 | . . . . . . . . . . . . 4 2 . . . 1 . 2 . . . Self-Inflicted Damage 1312 | . . . . . . . . 15 . . . . 63 . . 105 . 59 355 200 3 512 Shots 25 | . . . . . . . . 1 . . . . 1 . . 1 . 2 6 6 . 8 Rammed 60 | . . 1 . . 6 . . . . . . 1 . 1 . 3 2 . 8 32 3 3 Targets Rammed 73 | . . 1 . . 6 . . . . . . 1 . 1 . 3 3 . 20 32 3 3 Kicked 12 | . . . . . . . . . . . . . . . . . . . 12 . . . Crushed 1 | . . . . . . . . . . . . . . . . . 1 . . . . . Highest Temperature 694 | . 240 694 244 255 369 90 148 144 361 . 270 313 178 . . 275 161 . 443 131 331 342 Average Temperature 99 | . 75 210 103 75 109 33 84 65 222 . 117 70 54 . . 74 29 . 88 24 150 99 Received Heat Transfer 3619 | . 135 225 27 315 513 . 30 42 . . . 186 331 27 36 387 117 . 561 99 93 495 Effects 41 | . 1 21 . 3 2 . . . 3 . 2 . . . . 2 . . 3 . 2 2 Shutdowns 5 | . . 1 . . 1 . . . . . . . . . . . . . 2 . . 1 Energy Bleed 5 | . 1 2 . . 1 . . . . . . . . . . . . . 1 . . . Interference 14 | . . 2 . 3 . . . . 3 . 2 . . . . 2 . . . . 2 . Matter Decay 4 | . . 3 . . . . . . . . . . . . . . . . . . . 1 Short Circuit 5 | . . 5 . . . . . . . . . . . . . . . . . . . . Damage (minor) 5 | . . 5 . . . . . . . . . . . . . . . . . . . . Damage (core) 3 | . . 3 . . . . . . . . . . . . . . . . . . . . Siege Activations . | . . . . . . . . . . . . . . . . . . . . . . . Robots Corrupted 6 | . . . . . . . . . . . . . . . . . 6 . . . . . Combat Hostiles 5 | . . . . . . . . . . . . . . . . . 5 . . . . . Parts Fried 27 | . . . . . . . . . . . . . 1 1 . . 17 . 5 . . 3 Impact Corruptions . | . . . . . . . . . . . . . . . . . . . . . . . Robots Melted . | . . . . . . . . . . . . . . . . . . . . . . . Combat Hostiles . | . . . . . . . . . . . . . . . . . . . . . . . Parts Melted 13 | . 1 3 3 . . . . . . . . . . . . 2 . . 2 . . 2 Heat Transferred 5441 | . 851 1591 803 . . . . . . . . . 50 . 37 222 . . 888 555 . 444 Parts Sabotaged 3 | . . . . . . . . . . . . . . . . . . . . . . 3 Parts Stolen . | . . . . . . . . . . . . . . . . . . . . . . . Parts Stripped . | . . . . . . . . . . . . . . . . . . . . . . . Power Chain Reactions . | . . . . . . . . . . . . . . . . . . . . . . . Missiles Intercepted . | . . . . . . . . . . . . . . . . . . . . . . . Alert | -11 -10 -9 -9 -8 -8 -8 -6 -6 -6 -6 -5 -5 -5 -5 -5 -5 -4 -4 -4 -3 -3 -2 ------- Run | Scr Mat Mat Min Mat Sto Rec Fac Low Low Dat Pro Fac Ext Cet Arc Hub Fac Was Fac Res Tes Res Peak Influence 1847 | . 278 222 266 338 534 208 997 . . . . 630 1367 988 520 752 667 399 962 925 845 1847 Initial 937 | . . 47 70 25 62 208 937 . . . . . 274 764 395 182 368 229 272 466 519 390 Average 450 | . 144 88 130 107 363 89 956 . . . . 296 797 850 505 508 499 355 425 618 609 1321 Maximum Alert Level 5 | . 1 1 1 1 2 1 3 . . . . 2 4 3 2 3 2 1 3 3 3 5 Low Security (%) 25 | 100 68 96 81 84 9 96 . . . . . 32 . . . 2 . . . . . . Level 1 23 | . 31 3 18 15 54 3 . . . . . 32 13 . 4 22 29 100 53 . . 2 Level 2 33 | . . . . . 36 . . . . . . 34 29 . 95 59 70 . 39 75 83 9 Level 3 9 | . . . . . . . 100 . . . . . 26 99 . 15 . . 6 24 16 2 Level 4 5 | . . . . . . . . . . . . . 30 . . . . . . . . 53 Level 5 1 | . . . . . . . . . . . . . . . . . . . . . . 32 High Security . | . . . . . . . . . . . . . . . . . . . . . . . Max Security . | . . . . . . . . . . . . . . . . . . . . . . . Squads Dispatched 56 | . 3 1 . 2 3 . . . . . . 6 4 . . 7 8 . 7 2 3 10 Investigation 6 | . 1 . . 1 . . . . . . . 1 1 . . . 1 . 1 . . . Extermination 16 | . . . . . . . . . . . . 3 . . . 1 3 . 3 1 2 3 Reinforcement 22 | . 2 1 . 1 3 . . . . . . 2 2 . . 2 4 . 1 1 1 2 Assault 9 | . . . . . . . . . . . . . 1 . . 1 . . 2 . . 5 Garrison 3 | . . . . . . . . . . . . . . . . 3 . . . . . . Intercept . | . . . . . . . . . . . . . . . . . . . . . . . Construction Impeded 7 | . . . . . . . . . . . . 1 1 . . . 3 . . . . 2 Haulers Reinforced 1 | . . . . . . . . . . . . 1 . . . . . . . . . . Stealth | -11 -10 -9 -9 -8 -8 -8 -6 -6 -6 -6 -5 -5 -5 -5 -5 -5 -4 -4 -4 -3 -3 -2 --------- Run | Scr Mat Mat Min Mat Sto Rec Fac Low Low Dat Pro Fac Ext Cet Arc Hub Fac Was Fac Res Tes Res Distress Signals 24 | . 1 . . 3 3 . . . . . . . 2 1 . 5 2 . 1 2 2 2 Communications Jammed 41 | . . . . 23 . 3 . . . . . . . . . . . . 15 . . . Distress Signals 38 | . . . . 23 . . . . . . . . . . . . . . 15 . . . Times Spotted 547 | . 18 22 6 32 45 32 1 3 3 . 2 29 53 15 5 53 27 7 54 26 32 82 Peak Tracking Total 12 | . 4 5 3 6 4 5 1 2 3 . 1 6 10 9 1 5 4 2 5 11 4 12 Tactical Retreats 61 | . 2 1 . 1 9 . . . . . . 1 1 1 . 10 3 . 6 3 9 14 Traps | -11 -10 -9 -9 -8 -8 -8 -6 -6 -6 -6 -5 -5 -5 -5 -5 -5 -4 -4 -4 -3 -3 -2 ------- Run | Scr Mat Mat Min Mat Sto Rec Fac Low Low Dat Pro Fac Ext Cet Arc Hub Fac Was Fac Res Tes Res Traps Triggered 21 | . 1 . . 1 2 . . . . . . 2 2 . . 7 2 . 2 1 . 1 Indirectly . | . . . . . . . . . . . . . . . . . . . . . . . Trap Hack Attempts . | . . . . . . . . . . . . . . . . . . . . . . . Triggered . | . . . . . . . . . . . . . . . . . . . . . . . Disarmed . | . . . . . . . . . . . . . . . . . . . . . . . Reprogrammed . | . . . . . . . . . . . . . . . . . . . . . . . Reused . | . . . . . . . . . . . . . . . . . . . . . . . Traps Extracted . | . . . . . . . . . . . . . . . . . . . . . . . Installed . | . . . . . . . . . . . . . . . . . . . . . . . Triggered 1 | . . . . . 1 . . . . . . . . . . . . . . . . . Machines | -11 -10 -9 -9 -8 -8 -8 -6 -6 -6 -6 -5 -5 -5 -5 -5 -5 -4 -4 -4 -3 -3 -2 ---------- Run | Scr Mat Mat Min Mat Sto Rec Fac Low Low Dat Pro Fac Ext Cet Arc Hub Fac Was Fac Res Tes Res Machines Disabled 52 | . . 1 1 5 5 1 . . . . . 2 8 5 2 6 2 . 9 4 1 . Max in Single Turn 2 | . . 1 1 1 1 1 . . . . . 1 2 1 1 1 1 . 1 2 . . Garrison Access 3 | . . . . . 1 . . . . . . . . . . 2 . . . . . . Network Hub 1 | . . . . . . . . . . . . . . . . 1 . . . . . . Energy Cycler 2 | . . . . . . . . . . . . . 2 . . . . . . . . . Machines Sabotaged . | . . . . . . . . . . . . . . . . . . . . . . . Garrisons Compromised . | . . . . . . . . . . . . . . . . . . . . . . . Overloaded Fab Kills . | . . . . . . . . . . . . . . . . . . . . . . . Fab Network Shutdowns . | . . . . . . . . . . . . . . . . . . . . . . . Hacking | -11 -10 -9 -9 -8 -8 -8 -6 -6 -6 -6 -5 -5 -5 -5 -5 -5 -4 -4 -4 -3 -3 -2 --------- Run | Scr Mat Mat Min Mat Sto Rec Fac Low Low Dat Pro Fac Ext Cet Arc Hub Fac Was Fac Res Tes Res Machines Accessed 77 | . 4 4 . 5 5 9 2 . . 4 . 9 5 3 . 11 3 . 8 2 2 1 Terminals 54 | . 4 3 . 3 4 6 2 . . . . 6 5 3 . 9 3 . 2 1 2 1 Fabricators 5 | . . . . . . . . . . . . . . . . . . . 4 1 . . Repair Stations 2 | . . . . . . . . . . . . 1 . . . . . . 1 . . . Recycling Units 4 | . . 1 . . . 3 . . . . . . . . . . . . . . . . Scanalyzers 4 | . . . . 2 . . . . . . . 2 . . . . . . . . . . Garrison Access 4 | . . . . . 1 . . . . . . . . . . 2 . . 1 . . . Total Hacks 249 | . 14 11 . 21 17 28 5 . . 26 . 19 13 8 . 22 10 . 32 6 14 3 Successful 124 | . 6 7 . 13 6 16 2 . . 26 . 14 4 2 . 8 2 . 12 1 5 . Failed 124 | . 8 4 . 8 11 12 3 . . . . 5 9 6 . 14 8 . 19 5 9 3 Catastrophic 25 | . 1 1 . 1 1 2 1 . . . . 1 3 . . 4 2 . 5 1 2 . Database Lockouts 1 | . . . . . . . . . . . . . . . . . . . 1 . . . Manual 140 | . 12 5 . 13 14 16 2 . . 1 . 10 11 2 1 14 10 . 16 1 9 3 Terminals 177 | . 14 9 . 13 16 21 5 . . . . 12 13 8 . 19 10 . 17 3 14 3 Fabricators 11 | . . . . . . . . . . . . . . . . . . . 8 3 . . Repair Stations 6 | . . . . . . . . . . . . 2 . . . . . . 4 . . . Recycling Units 9 | . . 2 . . . 7 . . . . . . . . . . . . . . . . Scanalyzers 13 | . . . . 8 . . . . . . . 5 . . . . . . . . . . Garrison Access 7 | . . . . . 1 . . . . . . . . . . 3 . . 3 . . . Terminal Hacks 64 | . 2 5 . 3 2 5 1 . . 26 . 3 2 2 . 5 1 . 4 . 3 . Record 18 | . . . . . . . . . . 11 . . 1 2 . 1 . . 2 . 1 . Part Schematic 9 | . . . . . . 2 . . . 7 . . . . . . . . . . . . Robot Schematic 5 | . . . . . . . . . . 5 . . . . . . . . . . . . Robot Analysis 1 | . . 1 . . . . . . . . . . . . . . . . . . . . Prototype ID Bank 4 | . 1 . . . . . . . . 3 . . . . . . . . . . . . Open Door 2 | . . . . . 1 . . . . . . 1 . . . . . . . . . . Branch Access Points 3 | . . . . . . 1 . . . . . . . . . 1 . . 1 . . . Emergency Access Points 2 | . . 1 . . . . . . . . . . . . . 1 . . . . . . Alert Level 4 | . . . . 1 . 1 1 . . . . 1 . . . . . . . . . . Unreport Threat 12 | . . 3 . 2 1 1 . . . . . . . . . 2 1 . 1 . 1 . Locate Traps 1 | . . . . . . . . . . . . 1 . . . . . . . . . . Recall Investigation 1 | . . . . . . . . . . . . . 1 . . . . . . . . . Zone Layout 2 | . 1 . . . . . . . . . . . . . . . . . . . 1 . Fabricator Hacks 2 | . . . . . . . . . . . . . . . . . . . 2 . . . Load Schematic 1 | . . . . . . . . . . . . . . . . . . . 1 . . . Build 1 | . . . . . . . . . . . . . . . . . . . 1 . . . Repair Station Hacks 5 | . . . . . . . . . . . . 2 . . . . . . 3 . . . Scan Component 2 | . . . . . . . . . . . . 1 . . . . . . 1 . . . Repair 2 | . . . . . . . . . . . . 1 . . . . . . 1 . . . Refit 1 | . . . . . . . . . . . . . . . . . . . 1 . . . Recycling Unit Hacks 6 | . . 2 . . . 4 . . . . . . . . . . . . . . . . Process 1 | . . . . . . 1 . . . . . . . . . . . . . . . . Report Inventory 3 | . . 1 . . . 2 . . . . . . . . . . . . . . . . Retrieve Components 2 | . . 1 . . . 1 . . . . . . . . . . . . . . . . Scanalyzer 12 | . . . . 8 . . . . . . . 4 . . . . . . . . . . Insert Component 6 | . . . . 4 . . . . . . . 2 . . . . . . . . . . Analyze 6 | . . . . 4 . . . . . . . 2 . . . . . . . . . . Garrison Access Hacks 3 | . . . . . 1 . . . . . . . . . . 2 . . . . . . Seal Access 3 | . . . . . 1 . . . . . . . . . . 2 . . . . . . Unauthorized Hacks 32 | . 4 . . 2 3 7 1 . . . . 5 2 . . 1 1 . 3 1 2 . Terminals 29 | . 4 . . 2 3 7 1 . . . . 4 2 . . 1 1 . 1 1 2 . Track 2 | . . . . . . 1 . . . . . . . . . . . . . . 1 . Botnet 27 | . 4 . . 2 3 6 1 . . . . 4 2 . . 1 1 . 1 1 1 . Fabricators 1 | . . . . . . . . . . . . . . . . . . . 1 . . . Download 1 | . . . . . . . . . . . . . . . . . . . 1 . . . Repair Stations 1 | . . . . . . . . . . . . . . . . . . . 1 . . . Mechanics 1 | . . . . . . . . . . . . . . . . . . . 1 . . . Recycling Units . | . . . . . . . . . . . . . . . . . . . . . . . Scanalyzers 1 | . . . . . . . . . . . . 1 . . . . . . . . . . Researchers 1 | . . . . . . . . . . . . 1 . . . . . . . . . . Garrison Access . | . . . . . . . . . . . . . . . . . . . . . . . Data Cores Recovered 1 | . . . . . . . . . . . . . . . . . 1 . . . . . Used . | . . . . . . . . . . . . . . . . . . . . . . . Hacking Detections 64 | . 4 3 . 5 3 9 2 . . . . 7 5 3 . 9 3 . 6 2 2 1 Full Trace Events 3 | . 1 . . . . 1 . . . . . 1 . . . . . . . . . . Feedback Events . | . . . . . . . . . . . . . . . . . . . . . . . Feedback Blocked . | . . . . . . . . . . . . . . . . . . . . . . . Robot Schematics Acquired 5 | . . . . . . . . . . 5 . . . . . . . . . . . . Robots Built . | . . . . . . . . . . . . . . . . . . . . . . . Matter . | . . . . . . . . . . . . . . . . . . . . . . . Time . | . . . . . . . . . . . . . . . . . . . . . . . Total Robot Build Rating . | . . . . . . . . . . . . . . . . . . . . . . . Part Schematics Acquired 13 | . . . . 2 . 2 . . . 7 . 1 . . . . . . 1 . . . Parts Built 1 | . . . . . . . . . . . . . . . . . . . 1 . . . Matter 285 | . . . . . . . . . . . . . . . . . . . 285 . . . Time 152 | . . . . . . . . . . . . . . . . . . . 152 . . . Total Part Build Rating 5 | . . . . . . . . . . . . . . . . . . . 5 . . . Parts Repaired 1 | . . . . . . . . . . . . 1 . . . . . . . . . . Time 146 | . . . . . . . . . . . . 38 . . . . . . 108 . . . Parts Recycled . | . . . . . . . . . . . . . . . . . . . . . . . Recycled Matter 4 | . . . . . . 4 . . . . . . . . . . . . . . . . Retrieved Matter . | . . . . . . . . . . . . . . . . . . . . . . . Retrieved Components 11 | . . 10 . . . 1 . . . . . . . . . . . . . . . . Parts Scanalyzed 3 | . . . . 2 . . . . . . . 1 . . . . . . . . . . Part Schematics Acquired 3 | . . . . 2 . . . . . . . 1 . . . . . . . . . . Parts Damaged . | . . . . . . . . . . . . . . . . . . . . . . . Bothacking | -11 -10 -9 -9 -8 -8 -8 -6 -6 -6 -6 -5 -5 -5 -5 -5 -5 -4 -4 -4 -3 -3 -2 ------------ Run | Scr Mat Mat Min Mat Sto Rec Fac Low Low Dat Pro Fac Ext Cet Arc Hub Fac Was Fac Res Tes Res Used RIF Installer . | . . . . . . . . . . . . . . . . . . . . . . . Robots Hacked . | . . . . . . . . . . . . . . . . . . . . . . . Non-combat . | . . . . . . . . . . . . . . . . . . . . . . . Combat . | . . . . . . . . . . . . . . . . . . . . . . . Robot Hacks Applied . | . . . . . . . . . . . . . . . . . . . . . . . Relay Couplers Released . | . . . . . . . . . . . . . . . . . . . . . . . Robots Rewired 21 | . . . . . . . . . . . . . 20 . . . . . . . 1 . Allies Hacked . | . . . . . . . . . . . . . . . . . . . . . . . Hacks Repelled . | . . . . . . . . . . . . . . . . . . . . . . . Allies | -11 -10 -9 -9 -8 -8 -8 -6 -6 -6 -6 -5 -5 -5 -5 -5 -5 -4 -4 -4 -3 -3 -2 -------- Run | Scr Mat Mat Min Mat Sto Rec Fac Low Low Dat Pro Fac Ext Cet Arc Hub Fac Was Fac Res Tes Res Total Allies 32 | . . . 2 . . . . . . . 1 . 28 . . . . . . . 1 . Largest Group 14 | . . . 2 1 . . . . . . 1 1 14 14 1 . . . . . 1 . Highest-Rated Group 465 | . . . 43 12 . . . . . . 94 94 465 393 37 . . . . . 147 . Highest-Rated Ally 156 | . . . 31 12 . . . . . . 94 94 156 37 37 . . . . . 147 . Total Orders 17 | . . . . . . . . . . . . 2 5 . . 1 . . 2 2 5 . STAY 4 | . . . . . . . . . . . . . 1 . . . . . . . 3 . FOLLOW 6 | . . . . . . . . . . . . . 4 . . . . . . . 2 . EXPLORE 7 | . . . . . . . . . . . . 2 . . . 1 . . 2 2 . . Ally Attacks 261 | . . . 7 . . . . . . . 2 14 152 77 2 . . . . . 7 . Total Damage 5111 | . . . 127 . . . . . . . 47 468 2881 1193 . . . . . . 395 . Kills 36 | . . . 2 . . . . . . . 1 3 23 6 . . . . . . 1 . Allies Corrupted 2 | . . . . . . . . . . . . . . . . . . . . 1 1 . Allies Melted . | . . . . . . . . . . . . . . . . . . . . . . . Intel | -11 -10 -9 -9 -8 -8 -8 -6 -6 -6 -6 -5 -5 -5 -5 -5 -5 -4 -4 -4 -3 -3 -2 ------- Run | Scr Mat Mat Min Mat Sto Rec Fac Low Low Dat Pro Fac Ext Cet Arc Hub Fac Was Fac Res Tes Res Robot Analysis Total 1 | . . 1 . . . . . . . . . . . . . . . . . . . . Derelict Logs Recovered 2 | . . . 1 . . . . . . . 1 . . . . . . . . . . . Drone Launches 9 | . . . . . . . . . . . . 2 . . . 3 . . 2 2 . . Drone Recoveries 3 | . . . . . . . . . . . . . . . . 1 . . 1 1 . . Exploration | -11 -10 -9 -9 -8 -8 -8 -6 -6 -6 -6 -5 -5 -5 -5 -5 -5 -4 -4 -4 -3 -3 -2 ------------- Run | Scr Mat Mat Min Mat Sto Rec Fac Low Low Dat Pro Fac Ext Cet Arc Hub Fac Was Fac Res Tes Res Turns Passed 19340 | 3 483 981 660 1328 1342 782 150 878 442 157 487 1914 1467 380 279 1916 932 257 2001 742 869 890 Spaces Moved 10136 | 3 272 471 458 751 574 434 72 494 233 93 276 898 521 198 141 856 450 158 974 642 585 582 Core 183 | . . . . . . . . . . . . . . . . . . . 10 88 . 85 Treads 5653 | . . 240 . . 463 434 72 494 233 93 276 898 510 198 141 856 194 . 454 4 67 26 Legs 3092 | 3 272 231 458 751 111 . . . . . . . 11 . . . 256 158 510 149 181 1 Wheels 91 | . . . . . . . . . . . . . . . . . . . . . . 91 Hover 1117 | . . . . . . . . . . . . . . . . . . . . 401 337 379 Flight . | . . . . . . . . . . . . . . . . . . . . . . . Fastest Speed 46 | 120 120 120 125 120 126 170 170 170 170 170 170 167 150 162 162 160 116 116 50 50 46 46 Average Speed 140 | 120 120 147 127 127 161 170 170 170 175 170 170 171 169 162 162 160 142 116 136 83 93 76 Slowest Speed 210 | 120 120 160 130 160 170 170 170 190 190 170 170 190 210 163 162 163 185 116 210 145 165 210 Overloaded Moves . | . . . . . . . . . . . . . . . . . . . . . . . Propulsion Burnouts . | . . . . . . . . . . . . . . . . . . . . . . . Robots Hopped . | . . . . . . . . . . . . . . . . . . . . . . . Cave-ins Triggered 1 | . . . . . . . . . . . . . . . . . . 1 . . . . Exploration Rate (%) 54 | 2 41 38 98 41 81 98 4 77 54 80 47 23 80 72 97 94 12 96 26 16 65 15 Regions Visited 22 Branch Regions 12 Pre-discovered Areas 1 | . . . . . . . . . . 1 . . . . . . . . . . . . Known Exits Taken 17 | . . 1 1 1 1 1 1 1 1 1 1 1 1 1 1 1 . . . 1 1 . Unknown Exits Taken 3 | 1 1 . . . . . . . . . . . . . . . . . 1 . . . Scrap Searched 6 | . . . 1 . . . . 2 2 . 1 . . . . . . . . . . . Spaces Dug 93 | . . . . 11 8 . . . . . . 10 . . . 9 5 13 2 . 5 30 Terrain Destroyed 1202 | . . 29 28 17 38 . . 1 6 . 2 90 125 . 6 174 32 190 191 123 5 145 Melee 42 | . . . . 11 8 . . . . . . . . . . 6 . . 1 . 5 11 Projectile 348 | . . 29 11 6 30 . . 1 6 . 2 90 75 . 6 33 32 . 25 . . 2 AOE 812 | . . . 17 . . . . . . . . . 50 . . 135 . 190 165 123 . 132 Terrain Rammed 1 | . . . . . . . . . . . . . . . . . . . 1 . . . Walls Destroyed . | . . . . . . . . . . . . . . . . . . . . . . . Machines Disabled 1 | . . . . . . . . . . . . . . . . . . . 1 . . . Actions | -11 -10 -9 -9 -8 -8 -8 -6 -6 -6 -6 -5 -5 -5 -5 -5 -5 -4 -4 -4 -3 -3 -2 --------- Run | Scr Mat Mat Min Mat Sto Rec Fac Low Low Dat Pro Fac Ext Cet Arc Hub Fac Was Fac Res Tes Res Total 13555 | 2 391 656 498 979 850 466 97 519 254 92 291 1174 964 229 164 1207 614 202 1394 801 824 887 Wait 1244 | . 76 74 6 89 130 18 15 . 6 . 5 148 52 . 2 136 63 4 157 49 88 126 Move 10114 | 2 271 470 457 750 573 433 71 493 232 92 275 897 520 197 140 855 450 156 973 641 584 582 Hop . | . . . . . . . . . . . . . . . . . . . . . . . Pick Up 176 | . 4 11 4 21 12 1 3 2 1 . 2 13 15 3 2 18 8 3 18 13 15 7 Fast Attach 183 | . 4 12 1 4 5 . . 1 . . . 19 13 4 2 32 4 . 17 19 24 22 Attach 107 | . . 3 . 3 1 . 4 . . . . 3 8 . 1 5 3 4 21 11 16 24 Detach 57 | . 1 1 . 1 1 . . 2 . . . 2 1 . . 5 . . 7 3 15 18 Swap 179 | . 4 12 5 24 23 2 2 6 3 . . 6 12 2 2 28 7 2 29 . 4 6 Drop 278 | . 8 25 7 21 17 1 . 6 1 . 2 28 19 9 4 43 12 4 23 8 24 16 Fire 719 | . 23 47 17 46 64 11 2 9 11 . 4 57 69 13 11 71 64 28 107 25 . 40 Melee 157 | . . . . 20 18 . . . . . . . . . . 11 . . 21 . 44 43 Ram 8 | . . . . . . . . . . . . . . . . . . . 1 1 3 3 Kick 13 | . . . . . . . . . . . . . . . . . . . 13 . . . Crush 53 | . . 1 . . 6 . . . . . . 1 . 1 . 3 3 . 7 31 . . Escape Stasis 1 | . . . . . . . . . . . . . . . . . . 1 . . . . Rewire 266 | . . . 1 . . . . . . . 3 . 255 . . . . . . . 7 . Trap . | . . . . . . . . . . . . . . . . . . . . . . . Miscellaneous . | . . . . . . . . . . . . . . . . . . . . . . . Route ------- -11/Scrapyard -10/Materials -9/Materials -9/Mines (discovered 2 exits: *Mat x2) -8/Materials -8/Storage (discovered 2 exits: *Fac / *Rec) -8/Recycling -6/Factory -6/Lower Caves -6/Lower Caves -6/Data Miner -5/Proximity Caves -5/Factory (discovered 2 exits: *Fac / *Ext) -5/Extension (discovered 3 exits: *Fac x2 / *Cet) -5/Cetus (discovered 2 exits: *Fac / *Arc) -5/Archives (discovered 3 exits: *Fac / *Hub x2) -5/Hub_04(d) (discovered 4 exits: *Fac x4) -4/Factory (discovered 2 exits: *Upp x2) -4/Waste -4/Factory (discovered 5 exits: *Res x2 / Upp x2 / Arm) -3/Research -3/Testing -2/Research History --------- Turn | Location | Event 1 | -11/Scrapyard | Discovered new exit (range 1) 4 | -11/Scrapyard | Entered Materials 241 | -10/Materials | Discovered new exit (range 10) 307 | -10/Materials | Build established: Mutant 487 | -10/Materials | Entered another Materials area 487 | -9/Materials | Evolved 2 slots: Utility x1, Weapon x1 1153 | -9/Materials | Core integrity fell below 50% 1162 | -9/Materials | Discovered new exit (range 11) 1198 | -9/Materials | Identified exit to Mines 1336 | -9/Materials | Build established: Gunner 1468 | -9/Materials | Entered Mines 1472 | -9/Mines | Met a Derelict bent on vengeance 1677 | -9/Mines | Discovered new exit (range 5) 1682 | -9/Mines | Identified exit to Materials 1730 | -9/Mines | Learned Materials stockpile data 1804 | -9/Mines | Discovered exit to Materials (range 7) 2058 | -9/Mines | Found a damaged Exp. Sensor Array with a note attached 2061 | -9/Mines | Found Prototype Device 2061 | -9/Mines | Identified Exp. Sensor Array 2128 | -9/Mines | Entered Materials 2128 | -8/Materials | Accompanied by 1 ally 2128 | -8/Materials | Evolved 2 slots: Propulsion x1, Utility x1 2435 | -8/Materials | Build established: Scavenger-Skirmisher 2895 | -8/Materials | Build established: Skirmisher 3314 | -8/Materials | Build established: Mutant 3434 | -8/Materials | Discovered new exit (range 13) 3449 | -8/Materials | Identified exit to Storage 3456 | -8/Materials | Entered Storage 4295 | -8/Storage | Discovered new exit (range 16) 4435 | -8/Storage | Identified exit to Factory 4791 | -8/Storage | Used back door to open Recycling access 4791 | -8/Storage | Discovered new exit (range 5) 4796 | -8/Storage | Identified exit to Recycling 4798 | -8/Storage | Entered Recycling 4845 | -8/Recycling | Spotter reported a threat 4863 | -8/Recycling | Spotter reported a threat 4878 | -8/Recycling | Spotter reported a threat 4892 | -8/Recycling | Spotter reported a threat 4900 | -8/Recycling | Spotter reported a threat 4935 | -8/Recycling | Spotter reported a threat 4957 | -8/Recycling | Spotter reported a threat 4969 | -8/Recycling | Spotter reported a threat 4992 | -8/Recycling | Spotter reported a threat 5005 | -8/Recycling | Spotter reported a threat 5076 | -8/Recycling | Spotter reported a threat 5094 | -8/Recycling | Spotter reported a threat 5121 | -8/Recycling | Spotter reported a threat 5126 | -8/Recycling | Spotter reported a threat 5129 | -8/Recycling | Spotter reported a threat 5141 | -8/Recycling | Spotter reported a threat 5147 | -8/Recycling | Spotter reported a threat 5153 | -8/Recycling | Discovered new exit (range 20) 5159 | -8/Recycling | Build established: Skirmisher 5174 | -8/Recycling | Spotter reported a threat 5194 | -8/Recycling | Spotter reported a threat 5197 | -8/Recycling | Identified exit to Factory 5210 | -8/Recycling | Spotter reported a threat 5233 | -8/Recycling | Spotter reported a threat 5241 | -8/Recycling | Spotter reported a threat 5263 | -8/Recycling | Spotter reported a threat 5277 | -8/Recycling | Spotter reported a threat 5294 | -8/Recycling | Spotter reported a threat 5316 | -8/Recycling | Spotter reported a threat 5359 | -8/Recycling | Spotter reported a threat 5359 | -8/Recycling | Spotter reported a threat 5369 | -8/Recycling | Spotter reported a threat 5388 | -8/Recycling | Spotter reported a threat 5422 | -8/Recycling | Spotter reported a threat 5453 | -8/Recycling | Spotter reported a threat 5480 | -8/Recycling | Spotter reported a threat 5533 | -8/Recycling | Spotter reported a threat 5554 | -8/Recycling | Spotter reported a threat 5571 | -8/Recycling | Spotter reported a threat 5580 | -8/Recycling | Entered Factory 5580 | -6/Factory | Evolved 4 slots: Propulsion x1, Utility x2, Weapon x1 5684 | -6/Factory | Discovered new exit (range 11) 5728 | -6/Factory | Identified exit to Lower Caves 5730 | -6/Factory | Entered Lower Caves 5732 | -6/Lower Caves | Attracted the attention of an 0b10 checkpoint 6253 | -6/Lower Caves | Encountered a Warlord checkpoint 6275 | -6/Lower Caves | Build established: Tank 6524 | -6/Lower Caves | Spotted B-75 Beast 6551 | -6/Lower Caves | Destroyed B-75 Beast 6605 | -6/Lower Caves | Discovered new exit (range 3) 6607 | -6/Lower Caves | Identified exit to Lower Caves 6608 | -6/Lower Caves | Entered another Lower Caves area 6740 | -6/Lower Caves | Attracted the attention of an 0b10 checkpoint 6825 | -6/Lower Caves | Build established: Gunner 7040 | -6/Lower Caves | Discovered new exit (range 8) 7049 | -6/Lower Caves | Identified exit to Data Miner 7050 | -6/Lower Caves | Entered Data Miner 7050 | -6/Data Miner | Discovered new exit (range 6) 7057 | -6/Data Miner | Identified exit to Proximity Caves 7073 | -6/Data Miner | Met Data Miner 7132 | -6/Data Miner | Learned location of Section 7 (-2) 7132 | -6/Data Miner | Acquired the access code to Warlord's prototype stash 7169 | -6/Data Miner | Received God Mode back door access code from Data Miner 7207 | -6/Data Miner | Entered Proximity Caves 7266 | -5/Proximity Caves | Escorted by Enhanced Grunt 7284 | -5/Proximity Caves | Attracted the attention of an 0b10 checkpoint 7634 | -5/Proximity Caves | Learned location of 1 exit from Factory 7667 | -5/Proximity Caves | Discovered new exit (range 15) 7684 | -5/Proximity Caves | Spotted B-75 Beast 7690 | -5/Proximity Caves | Identified exit to Factory 7694 | -5/Proximity Caves | Entered Factory 7694 | -5/Factory | Accompanied by 1 ally 7694 | -5/Factory | Evolved 2 slots: Propulsion x1, Utility x1 7695 | -5/Factory | Identified exit to Factory 8544 | -5/Factory | Repaired Arm. Treads 9422 | -5/Factory | Discovered new exit (range 6) 9427 | -5/Factory | Identified exit to Extension 9608 | -5/Factory | Entered Extension 9692 | -5/Extension | Rescued a captive Derelict 9693 | -5/Extension | Rescued a captive Derelict 9711 | -5/Extension | Rescued a captive Derelict 9711 | -5/Extension | Rescued a captive Derelict 9908 | -5/Extension | First assault squad dispatched 9922 | -5/Extension | Rescued a captive Derelict 9923 | -5/Extension | Rescued a captive Derelict 9949 | -5/Extension | Energy Cycler disabled 9955 | -5/Extension | Rescued a captive Derelict 9987 | -5/Extension | Incoming investigation squad redirected 10012 | -5/Extension | Rescued A7 10061 | -5/Extension | Spotted B-75 Beast 10095 | -5/Extension | Spotted B-75 Beast 10116 | -5/Extension | Allies destroyed B-75 Beast 10124 | -5/Extension | Discovered exit to Factory (range 20) 10143 | -5/Extension | Lost 4 parts (1p1u2w) 10148 | -5/Extension | Destroyed B-75 Beast 10246 | -5/Extension | Build established: Scavenger-Gunner 11044 | -5/Extension | Discovered exit to Factory (range 10) 11046 | -5/Extension | Discovered new exit (range 6) 11054 | -5/Extension | Identified exit to Cetus 11075 | -5/Extension | Entered Cetus 11075 | -5/Cetus | Accompanied by 14 allies 11090 | -5/Cetus | Spotted Cetus Guard 11092 | -5/Cetus | Spotted Cetus Guard 11095 | -5/Cetus | Spotted Cetus Guard 11103 | -5/Cetus | Spotted Cetus Guard 11105 | -5/Cetus | Allies destroyed Cetus Guard 11115 | -5/Cetus | Destroyed Cetus Guard 11125 | -5/Cetus | Destroyed Cetus Guard 11126 | -5/Cetus | Allies destroyed Cetus Guard 11193 | -5/Cetus | Discovered exit to Factory (range 21) 11297 | -5/Cetus | Cetus Manufacturing Module disabled 11421 | -5/Cetus | Discovered new exit (range 21) 11454 | -5/Cetus | Identified exit to Archives 11455 | -5/Cetus | Entered Archives 11455 | -5/Archives | Accompanied by 1 ally 11510 | -5/Archives | Unable to access archive contents 11535 | -5/Archives | Discovered exit to Factory (range 15) 11558 | -5/Archives | Discovered new exit (range 16) 11572 | -5/Archives | Discovered new exit (range 15) 11586 | -5/Archives | Unable to access archive contents 11651 | -5/Archives | Unable to access archive contents 11677 | -5/Archives | Identified exit to Hub_04(d) 11734 | -5/Archives | Entered Hub_04(d) 11865 | -5/Hub_04(d) | Discovered exit to Factory (range 8) 11969 | -5/Hub_04(d) | Garrison activated, responded to threat 12077 | -5/Hub_04(d) | Discovered exit to Factory (range 16) 12474 | -5/Hub_04(d) | Discovered exit to Factory (range 8) 12933 | -5/Hub_04(d) | Discovered exit to Factory (range 8) 13297 | -5/Hub_04(d) | Network Hub disabled 13334 | -5/Hub_04(d) | Spotted Lightning 13334 | -5/Hub_04(d) | Spotted Lightning 13340 | -5/Hub_04(d) | Spotted Lightning 13344 | -5/Hub_04(d) | Destroyed Lightning 13345 | -5/Hub_04(d) | System corruption reached 10% 13389 | -5/Hub_04(d) | Destroyed Lightning 13425 | -5/Hub_04(d) | Destroyed Lightning 13447 | -5/Hub_04(d) | Lost 3 parts (1n2u) 13448 | -5/Hub_04(d) | Found Prototype Energy Cannon 13448 | -5/Hub_04(d) | Identified EMDS 13452 | -5/Hub_04(d) | Found Prototype Device 13452 | -5/Hub_04(d) | Identified EM Dispersion Field 13468 | -5/Hub_04(d) | Found Prototype Processor 13468 | -5/Hub_04(d) | Identified Exp. Targeting Computer 13482 | -5/Hub_04(d) | Found EMDS 13534 | -5/Hub_04(d) | First assault squad dispatched 13550 | -5/Hub_04(d) | Incoming assault squad redirected 13624 | -5/Hub_04(d) | Spotted Lightning 13636 | -5/Hub_04(d) | Spotted Lightning 13650 | -5/Hub_04(d) | Entered Factory 13650 | -4/Factory | Evolved 2 slots: Power x1, Utility x1 13801 | -4/Factory | Discovered new exit (range 3) 14397 | -4/Factory | Discovered new exit (range 13) 14582 | -4/Factory | Sucked down chute 14582 | -4/Factory | Entered Waste 14594 | -4/Waste | Spotted C-40 Crusher 14597 | -4/Waste | EMP discharged 14604 | -4/Waste | Destroyed C-40 Crusher 14614 | -4/Waste | Spotted C-40 Crusher 14634 | -4/Waste | Spotted C-40 Crusher 14646 | -4/Waste | Spotted C-40 Crusher 14673 | -4/Waste | Destroyed C-40 Crusher 14679 | -4/Waste | Spotted C-40 Crusher 14690 | -4/Waste | Destroyed C-40 Crusher 14697 | -4/Waste | EMP discharged 14716 | -4/Waste | Spotted C-40 Crusher 14722 | -4/Waste | Crushed by falling debris 14772 | -4/Waste | Crushed by Compactor (1 part destroyed) 14797 | -4/Waste | EMP discharged 14815 | -4/Waste | Discovered new exit (range 22) 14839 | -4/Waste | Entered Factory 14840 | -4/Factory | Discovered new exit (range 21) 14883 | -4/Factory | Build established: Scavenger-Mutant 15335 | -4/Factory | Spotted B-86 Titan 15658 | -4/Factory | Build established: Scavenger-Gunner 15878 | -4/Factory | Fabricated Exp. Terrain Scan Processor (x1) 16489 | -4/Factory | Identified exit to Upper Caves 16489 | -4/Factory | Identified exit to Armory 16489 | -4/Factory | Central database locked down 16521 | -4/Factory | Discovered new exit (range 18) 16522 | -4/Factory | Incoming investigation squad redirected 16589 | -4/Factory | First assault squad dispatched 16698 | -4/Factory | Core integrity fell below 50% 16753 | -4/Factory | Destroyed 7 combat bots 16760 | -4/Factory | Lost 7 parts (2p2n3w) 16834 | -4/Factory | Released all parts (7) 16840 | -4/Factory | Entered Research 16840 | -3/Research | Evolved 2 slots: Utility x2 16865 | -3/Research | Lost 11 parts (1p4n1u5w) 17123 | -3/Research | Build established: Mutant 17379 | -3/Research | System corruption reached 10% 17440 | -3/Research | Lost 10 parts (2p2n4u2w) 17501 | -3/Research | Spotted B-86 Titan 17541 | -3/Research | Core integrity fell below 50% 17560 | -3/Research | Lost 3 parts (1p1n1u) 17574 | -3/Research | Discovered new exit (range 8) 17579 | -3/Research | Identified exit to Testing 17581 | -3/Research | Found Enh. Force Lance 17582 | -3/Research | Entered Testing 17962 | -3/Testing | Build established: Scavenger-Mutant 17967 | -3/Testing | Found Prototype Hackware 17967 | -3/Testing | Identified Exp. System Shield 18002 | -3/Testing | Spotted PY-IW9VPFD0HL 18026 | -3/Testing | Core integrity fell below 20% 18071 | -3/Testing | Rewired PY-IW9VPFD0HL 18322 | -3/Testing | Found Prototype Protection 18345 | -3/Testing | Identified Centrium Heavy Armor Plating 18421 | -3/Testing | Discovered new exit (range 4) 18422 | -3/Testing | Identified exit to Research 18451 | -3/Testing | Entered Research 18451 | -2/Research | Evolved 2 slots: Propulsion x2 18497 | -2/Research | Found Prototype Launcher 18497 | -2/Research | Identified Adv. Micro-nuke Launcher 18503 | -2/Research | Found Adv. Micro-nuke Launcher 18605 | -2/Research | Destroyed 11 combat bots 18976 | -2/Research | First assault squad dispatched 19063 | -2/Research | Destroyed 8 combat bots 19108 | -2/Research | Core integrity fell below 50% 19125 | -2/Research | Incoming assault squad redirected 19155 | -2/Research | Lost 22 parts (3p8n5u6w) 19225 | -2/Research | System corruption reached 10% 19254 | -2/Research | Incoming assault squad redirected 19267 | -2/Research | Incoming assault squad redirected 19294 | -2/Research | Core integrity fell below 20% 19321 | -2/Research | Incoming assault squad redirected 19332 | -2/Research | Lost 5 parts (1p1n1u2w) 19341 | -2/Research | Destroyed by G-73 Enforcer with Phase Gun Last Messages --------------- 19295_ Gamma Rifle destroyed. 19295_ Slammed into P-80 Master. 19296_ Acquired 13 matter. 19297_ Lgt. Particle Reactor destroyed. 19299_ Imp. Gyrokinetic Inverter destroyed. 19300_ P-80 Master resets P-80 Master, system corruption cleaned. 19301_ C-30 ARC bursts open, deploying its payload. 19301_ G-73 Enforcer unfolds itself. 19301_ E-15 Imp unfolds itself. 19301_ Structural Scanner destroyed. 19306_ System corrupted: Energy discharge (-37). 19312_ E-15 Imp destroyed. 19321_ ALERT: Higher priority target reported, redirecting assault. 19321_ Triggered Blade Trap. 19321_ Massive razor-sharp blades shoot up from within the floor. 19321_ Adv. Target Analyzer severed. 19323_ System corrupted: Component data lost. 19340_ XKV|A%P7EAS >K0I&YKN54PP8 [Achievement: 20k Club] [Achievement: 30k Club] Map ----- +----------------------------------------------------+ | #????????????????????????????????????????? | | % ####??????????????????????????????????????? | | % #??????????????????????????????????????? | | #??????????????????????????????????????? | | # #??????????????????????????????????????? | | #??????????????????????????????????????? | | #??????????????????????????????????????? | | ! # #??????????????????????????????????????? | | |= # ! #??????????????????????????????????????? | | % ########??????????????????????????????????????? | | [ #??????????????????????????????????????? | | #??????????????????????????????????????? | | #??????????????????????????????????????? | | +??????????????????????????????????????? | | ###### #?????????###??????????????????????????? | | #????# #?????????# ????#??????????????????? | | ###### ########??# #??????????????????? | | #??# """"" #??????????????????? | | #??# """"" #??????????????????? | | #??# """"" #??????????????????? | | #??# """"" #??????????????????? | | #########+### #??# #??????????????????? | | ??# # #??# #??????????????????? | | ??# # ######+########?????????????????? | | ??# # #?????????????????? | | ??# + g @ #?????????????????? | | ??# # #?????????????????? | | ??# """"" # A #?????????????????? | | ??# """"" ############### #?????????????????? | | ??# """"" #?????????????# #?????????????????? | | ########################### #?????????????????? | | #?????????????????? | | #?????????????????? | | #?????????????????? | | #?????????????????? | | #################+###########?????????????????? | | #?????????????? ??????????????????????????? | | #???????????? ????????????????????????? | | #???????????# #???????????????????????? | | #???????????# #???????????????????????? | | #???????????# #???????????????????????? | | #???????????# #???????????????????????? | | ####???????????# ""T"" #???????????????????????? | | ???????????????# """"" #???????????????????????? | | ???????????????###########???????????????????????? | | ?????????????????????????????????????????????????? | | ?????????????????????????????????????????????????? | | ######???????????????????????????????????????????? | | "" #???????????????????????????????????????????? | | "" #???????????????????????????????????????????? | +----------------------------------------------------+ Best States ------------- Heat Dissipation 87 Coolant Potential 80 Energy Generation 58 Energy Capacity 600 Matter Stores 300 Matter Capacity 350 Sight Range 22 Robot Scan Range 30 Terrain Scan Range 20 Terrain Scan Density 1010 ECM Strength 3 Jamming Range 16 Power Amplification 40 Base Temperature (-) 100 Armor Coverage 600 Resistance: KI 30 Resistance: TH 30 Resistance: EM 75 Propulsion Shielding 33 Phase Shifting 5 Evasion (%) 60 Targeting Accuracy 12 Target Analysis 8 Core Analysis 8 Recoil Reduction 5 Defensive Hacking 16 Item Schematics ----------------- Exp. Sensor Array | -8/Materials | Scanalyzed Lrg. Storage Unit | -8/Materials | Scanalyzed Greatsword | -8/Recycling | Hacked Enh. Optical Array | -8/Recycling | Hacked Combat Drone Bay | -6/Data Miner | Free Lgt. Regenerative Plating | -6/Data Miner | Free Cmb. Gravmag System | -6/Data Miner | Free Triangulator | -6/Data Miner | Free Exp. Terrain Scan Processor | -6/Data Miner | Free Tactical Coordination Suite | -6/Data Miner | Free Cloaking Device | -6/Data Miner | Free Hrd. Medium Armor Plating | -5/Factory | Scanalyzed Biometal Heavy Treads | -4/Factory | Downloaded Robot Schematics ------------------ S-27 Virus | -6/Data Miner | Free G-50 Soldier | -6/Data Miner | Free G-67 Veteran | -6/Data Miner | Free L-41 Fighter | -6/Data Miner | Free I-36 Angel | -6/Data Miner | Free Fabricated ------------ Exp. Terrain Scan Processor | x1 | -4/Factory Alien Tech Used ----------------- None Achievements -------------- 20k Club 30k Club Knowing Is Half The Battle Prison Break Sniper Streaker The Oracle Challenges ------------ None Game ------ Seed NeutralizingFluxThruster Manual? 0 Play Time 05:03:43 Cumulative 39.9 hours Start 2021.07.23 @ 03:24:45 End 2021.07.23 @ 21:41:22 Sessions 1 Manual Loads 0 Difficulty Rogue Special Mode None Game No. 18 Rogue 16 Adventurer 2 Explorer 0 Win Type - Total 1 Types 1/0/0/0/0/0/0/0/0 Lore% 29 Gallery% 47 Achievement% 38 Wizard Run 0 Options --------- ASCII 0 Keyboard 0 Movement Numpad Keybinds 0 Fullscreen 1 Font 18/SmallcapsGlow Map View 76x50 Tactical HUD 1 Map Filters NONE Filters NONE Steam 1 RUN: 2235898d-894a-451b-917e-407f31dd502a